bitfinex/quotes_BTCUSD_20250124
["timestamp","ask_amount","ask_price","bid_price","bid_amount"]
[1737731011562,0.142099,105560.0,105550.0,0.29775195]
[1737731011986,0.42889729,105570.0,105560.0,0.03]
[1737731012191,0.142099,105560.0,105550.0,0.12563995]
[1737731012425,0.3945593,105560.0,105550.0,0.12563995]
[1737731012651,0.5445593,105560.0,105550.0,0.12563995]
[1737731015729,0.38944629,105560.0,105550.0,0.13563995]
[1737731016497,0.38944629,105560.0,105550.0,0.28775195]
[1737731016827,0.38944629,105560.0,105550.0,0.14563995]
[1737731017226,0.5445593,105560.0,105550.0,0.13563995]
[1737731019120,0.14161538,105550.0,105540.0,0.0161573]
[1737731019328,0.199543,105520.0,105390.0,0.0472856]
[1737731019551,0.29728801,105510.0,105500.0,0.16267208]
[1737731019751,0.68645901,105520.0,105500.0,0.35319284]
[1737731019887,9e-05,105520.0,105510.0,0.02]
[1737731020245,9e-05,105520.0,105510.0,0.02094772]
[1737731020439,9e-05,105520.0,105510.0,0.02]
[1737731020684,0.01009,105520.0,105510.0,0.02]
[1737731021190,9e-05,105520.0,105510.0,0.16311369]
[1737731021598,9e-05,105520.0,105510.0,0.16311357]
[1737731022077,9e-05,105520.0,105510.0,0.26046086]
[1737731022312,9e-05,105520.0,105510.0,0.38731329]
[1737731023116,0.49669801,105560.0,105540.0,0.162124]
[1737731023326,0.152096,105570.0,105550.0,0.0951]
[1737731023531,0.53125483,105580.0,105550.0,0.42761842]
[1737731023731,0.53125483,105580.0,105550.0,0.616145]
[1737731023732,0.81804412,105580.0,105550.0,0.616145]
[1737731023965,0.01,105570.0,105550.0,0.426671]
[1737731024176,0.142099,105560.0,105550.0,0.0951]
[1737731024392,0.29946896,105560.0,105550.0,0.0951]
[1737731024595,0.30946896,105560.0,105550.0,0.0751]
[1737731024803,0.40681625,105560.0,105550.0,0.0751]
[1737731025009,0.152112,105550.0,105540.0,0.0665]
[1737731025217,0.30948196,105550.0,105540.0,0.04664716]
[1737731025423,0.93578425,105560.0,105540.0,0.20877316]
[1737731025603,0.388914,105570.0,105550.0,0.02]
[1737731025854,0.43888329,105570.0,105550.0,0.162105]
[1737731026054,2.02125883,105580.0,105560.0,0.162097]
[1737731026259,0.142085,105570.0,105560.0,0.0956]
[1737731026464,2.11860412,105580.0,105560.0,0.0956]
[1737731026673,0.01763221,105570.0,105560.0,0.237695]
[1737731026851,0.01763221,105570.0,105560.0,0.42715]
[1737731027106,0.01763221,105570.0,105560.0,0.47295]
[1737731027306,0.01763221,105570.0,105560.0,0.57029729]
[1737731027517,0.00029883,105580.0,105570.0,0.440685]
[1737731027729,0.50029883,105590.0,105580.0,0.162072]
[1737731027935,0.50029883,105590.0,105580.0,0.34036624]
[1737731028150,0.50029883,105590.0,105580.0,0.33941929]
[1737731028585,0.50029883,105590.0,105580.0,0.48941929]
[1737731030063,0.37219883,105590.0,105580.0,0.51241929]
[1737731030275,0.16599883,105590.0,105580.0,0.57991929]
[1737731030493,0.16599883,105590.0,105580.0,0.55691929]
[1737731030918,0.16599883,105590.0,105580.0,0.57991929]
[1737731031335,0.08069883,105590.0,105580.0,0.50711929]
[1737731032621,0.07793253,105590.0,105580.0,0.50711929]
[1737731032829,0.07823136,105590.0,105580.0,0.50711929]
[1737731033864,0.07823136,105590.0,105580.0,0.46711929]
[1737731034082,0.07823136,105590.0,105580.0,0.50711929]
[1737731034492,0.07823136,105590.0,105580.0,0.51711929]
[1737731036154,0.07823136,105590.0,105580.0,0.47711929]
[1737731036365,0.07823136,105590.0,105580.0,0.51711929]
[1737731037199,0.07823136,105590.0,105580.0,0.45411929]
[1737731037416,0.07823136,105590.0,105580.0,0.46691929]
[1737731037836,0.23560132,105590.0,105580.0,0.172072]
[1737731038052,0.07823136,105590.0,105580.0,0.17301902]
[1737731038261,0.07823136,105590.0,105580.0,0.152072]
[1737731038479,0.46715932,105590.0,105580.0,0.01]
[1737731038892,0.30978936,105590.0,105580.0,0.01]
[1737731039092,1.80978936,105590.0,105580.0,0.01]
[1737731039321,0.29978936,105590.0,105580.0,0.03]
[1737731039548,0.15773136,105590.0,105580.0,0.172072]
[1737731039757,0.15773136,105590.0,105580.0,0.17301909]
[1737731039968,0.15773136,105590.0,105580.0,0.172072]
[1737731039969,0.29978936,105590.0,105580.0,0.172072]
[1737731040176,0.15773136,105590.0,105580.0,0.172072]
[1737731040710,0.15773136,105590.0,105580.0,0.17301904]
[1737731040711,0.07823136,105590.0,105580.0,0.17301904]
[1737731041331,0.07823136,105590.0,105580.0,0.27036633]
[1737731041547,0.07823136,105590.0,105580.0,0.43941929]
[1737731042218,0.07823136,105590.0,105580.0,0.39941929]
[1737731043494,0.07823136,105590.0,105580.0,0.41941929]
[1737731043697,0.07823136,105590.0,105580.0,0.39941929]
[1737731043910,0.07823136,105590.0,105580.0,0.152072]
[1737731044115,0.07823136,105590.0,105580.0,0.17301901]
[1737731044521,0.07823136,105590.0,105580.0,0.2705086]
[1737731044743,0.07823136,105590.0,105580.0,0.26956159]
[1737731045188,0.07823136,105590.0,105580.0,0.1522143]
[1737731045399,0.22028936,105590.0,105580.0,0.0101423]
[1737731045865,0.22028936,105590.0,105580.0,0.0301423]
[1737731045866,0.38028936,105590.0,105580.0,0.0301423]
[1737731046301,1.96763665,105590.0,105580.0,0.0101423]
[1737731046519,0.46763665,105590.0,105580.0,0.0101423]
[1737731046761,0.46763665,105590.0,105580.0,0.0301423]
[1737731046972,0.45866695,105590.0,105580.0,0.0301423]
[1737731047195,0.45866695,105590.0,105580.0,0.0101423]
[1737731047398,0.38043559,105590.0,105580.0,0.0101423]
[1737731047600,0.39043559,105590.0,105580.0,0.0301423]
[1737731047724,0.38043559,105590.0,105580.0,0.0301423]
[1737731048126,0.2930883,105590.0,105580.0,0.0301423]
[1737731048531,0.292058,105590.0,105580.0,0.0301423]
[1737731048667,0.292058,105590.0,105580.0,0.1722143]
[1737731049093,0.39940529,105590.0,105580.0,0.0301423]
[1737731049299,0.38940529,105590.0,105580.0,0.0301423]
[1737731049692,0.38940529,105590.0,105580.0,0.0101423]
[1737731050086,0.51960529,105590.0,105580.0,0.0101423]
[1737731050441,0.60744024,105590.0,105580.0,0.0101423]
[1737731050653,0.235199,105560.0,105550.0,0.0001423]
[1737731050860,0.235199,105560.0,105550.0,0.0201423]
[1737731050984,0.0931,105560.0,105550.0,0.0201423]
[1737731051190,0.0931,105560.0,105550.0,0.1622543]
[1737731051401,0.235199,105560.0,105550.0,0.0001423]
[1737731051846,0.48254629,105560.0,105550.0,0.0201423]
[1737731052050,0.47254629,105560.0,105550.0,0.0201423]
[1737731052686,0.47254629,105560.0,105550.0,0.0001423]
[1737731052893,0.52134629,105560.0,105550.0,0.0001423]
[1737731054077,2.02134629,105560.0,105550.0,0.0001423]
[1737731057188,0.52134629,105560.0,105550.0,0.0201423]
[1737731058381,0.48254629,105560.0,105550.0,0.0201423]
[1737731058916,0.47254629,105560.0,105550.0,0.0201423]
[1737731059850,0.47254629,105560.0,105550.0,0.0001423]
[1737731063822,0.33044729,105560.0,105550.0,0.0001423]
[1737731064034,0.3379851,105580.0,105560.0,0.162099]
[1737731064257,0.0806,105580.0,105570.0,0.162085]
[1737731064466,0.0906,105580.0,105570.0,0.02]
[1737731064677,0.0906,105580.0,105550.0,0.0001423]
[1737731064678,0.34155,105570.0,105550.0,0.0201423]
[1737731064878,0.142099,105560.0,105550.0,0.0001423]
[1737731065081,0.152099,105560.0,105550.0,0.0001423]
[1737731065293,0.152099,105560.0,105550.0,0.1622543]
[1737731065522,0.62836129,105570.0,105550.0,0.3517363]
[1737731065716,0.48626529,105570.0,105550.0,0.3517363]
[1737731065933,0.142099,105560.0,105550.0,0.1622543]
[1737731067159,0.62836029,105570.0,105550.0,0.5412093]
[1737731067378,0.58889729,105570.0,105550.0,0.5412093]
[1737731067580,0.77835229,105570.0,105550.0,0.5412023]
[1737731067789,0.34155,105570.0,105560.0,0.162099]
[1737731067990,0.422106,105580.0,105570.0,0.142085]
[1737731068193,0.562106,105580.0,105570.0,0.142085]
[1737731068397,0.41240483,105580.0,105570.0,0.162085]
[1737731068610,0.520994,105570.0,105550.0,0.5211913]
[1737731068810,0.142094,105570.0,105560.0,0.162099]
[1737731069019,0.37767512,105580.0,105560.0,0.162099]
[1737731069020,0.37767512,105580.0,105570.0,0.02]
[1737731069222,0.50975812,105580.0,105570.0,0.162085]
[1737731069430,0.22298183,105580.0,105570.0,0.162085]
[1737731069634,0.08089883,105580.0,105570.0,0.162085]
[1737731070084,0.00029883,105580.0,105570.0,0.16303218]
[1737731070703,0.00029883,105580.0,105570.0,0.17126354]
[1737731070909,8.3e-07,105580.0,105570.0,0.41861083]
[1737731071139,0.00029883,105590.0,105580.0,0.342372]
[1737731071343,0.00029883,105590.0,105580.0,0.43971929]
[1737731072246,0.00029883,105590.0,105580.0,0.42271929]
[1737731072504,0.0161573,105600.0,105590.0,0.312058]
[1737731072787,0.01630459,105600.0,105590.0,0.38940529]
[1737731073217,0.01630459,105600.0,105590.0,0.23940529]
[1737731073429,0.01630459,105600.0,105590.0,0.25940529]
[1737731073872,0.01630459,105600.0,105590.0,0.40940529]
[1737731074076,0.01630459,105600.0,105590.0,0.41970529]
[1737731075526,0.01630459,105600.0,105590.0,0.43970529]
[1737731076860,0.01630459,105600.0,105590.0,0.46270529]
[1737731078229,0.01630459,105600.0,105590.0,0.48944357]
[1737731079415,0.01630459,105600.0,105590.0,0.41614357]
[1737731079988,0.01660342,105600.0,105590.0,0.41614357]
[1737731080495,0.01660342,105600.0,105590.0,0.41763665]
[1737731081549,0.01660342,105600.0,105590.0,0.39763665]
[1737731081758,0.01660342,105600.0,105590.0,0.41763665]
[1737731081960,0.01660342,105600.0,105590.0,0.39763665]
[1737731082356,0.01660342,105600.0,105590.0,0.24763665]
[1737731082526,0.01660342,105600.0,105590.0,0.15028936]
[1737731082731,0.01660342,105600.0,105590.0,0.15123629]
[1737731083344,0.01660342,105600.0,105590.0,0.17123629]
[1737731083559,0.16864842,105600.0,105590.0,0.00917829]
[1737731083755,0.16864842,105600.0,105590.0,0.00823136]
[1737731085236,0.15864842,105600.0,105590.0,0.17028936]
[1737731085544,0.16864842,105600.0,105590.0,0.00823136]
[1737731086157,0.01660342,105600.0,105590.0,0.17028936]
[1737731086371,0.01660342,105600.0,105590.0,0.17123637]
[1737731086927,0.01660342,105600.0,105590.0,0.26858366]
[1737731087128,0.01660342,105600.0,105590.0,0.41763665]
[1737731090167,0.01660342,105600.0,105590.0,0.43763665]
[1737731090574,0.01660342,105600.0,105590.0,0.44760148]
[1737731090777,0.01660342,105600.0,105590.0,0.47060148]
[1737731091399,4.2e-07,105600.0,105590.0,0.47060148]
[1737731091615,4.2e-07,105600.0,105590.0,0.48090148]
[1737731091818,4.2e-07,105600.0,105590.0,0.48104378]
[1737731092925,0.06820041,105640.0,105630.0,0.162005]
[1737731093129,0.06834822,105640.0,105630.0,0.16295157]
[1737731093765,0.00014781,105640.0,105630.0,0.16295157]
[1737731093972,0.00014781,105640.0,105630.0,0.2602988]
[1737731094188,0.00014781,105640.0,105630.0,0.25935229]
[1737731094602,0.00014781,105640.0,105630.0,0.23935229]
[1737731094817,0.00014781,105640.0,105630.0,0.25935229]
[1737731095026,0.00014781,105640.0,105630.0,0.23935229]
[1737731095256,0.00014781,105640.0,105630.0,0.25935229]
[1737731095459,0.00014781,105640.0,105630.0,0.23935229]
[1737731095882,0.00014781,105640.0,105630.0,0.25935229]
[1737731096092,0.00014781,105640.0,105630.0,0.162005]
[1737731096334,0.00014781,105640.0,105630.0,0.16295152]
[1737731096546,0.00014781,105640.0,105630.0,0.26029881]
[1737731096751,0.00014781,105640.0,105630.0,0.45235229]
[1737731096972,0.00014781,105640.0,105630.0,0.40935229]
[1737731097749,0.00014781,105640.0,105630.0,0.43235229]
[1737731098561,0.00014781,105640.0,105630.0,0.45235229]
[1737731100030,0.00014781,105640.0,105630.0,0.47080576]
[1737731100159,8.1e-07,105640.0,105630.0,0.47080576]
[1737731100380,0.00029862,105660.0,105650.0,0.04]
[1737731100584,2.2e-07,105660.0,105650.0,0.45327141]
[1737731100816,2.2e-07,105660.0,105650.0,0.47162529]
[1737731101190,2.2e-07,105660.0,105650.0,0.40932529]
[1737731101437,2.2e-07,105660.0,105650.0,0.38932529]
[1737731101863,2.2e-07,105660.0,105650.0,0.42932529]
[1737731102076,2.2e-07,105660.0,105650.0,0.40932529]
[1737731103431,2.2e-07,105660.0,105650.0,0.46241751]
[1737731104817,2.2e-07,105660.0,105650.0,0.39941751]
[1737731105230,2.2e-07,105660.0,105650.0,0.46241751]
[1737731106477,2.2e-07,105660.0,105650.0,0.48171751]
[1737731106861,0.01758201,105680.0,105670.0,0.334951]
[1737731107085,0.0177297,105680.0,105670.0,0.43229829]
[1737731107214,0.0177297,105680.0,105670.0,0.40929829]
[1737731107618,0.00014769,105680.0,105670.0,0.38929829]
[1737731107838,0.00014769,105680.0,105670.0,0.40929829]
[1737731108205,0.00014769,105680.0,105670.0,0.38929829]
[1737731108338,0.00014769,105680.0,105670.0,0.40929829]
[1737731109131,0.00014769,105680.0,105670.0,0.38929829]
[1737731109380,0.07664769,105680.0,105670.0,0.38929829]
[1737731109760,0.07664769,105680.0,105670.0,0.40929829]
[1737731110455,0.00014769,105680.0,105670.0,0.43229829]
[1737731111361,0.00014769,105680.0,105670.0,0.45229829]
[1737731111362,6.9e-07,105680.0,105670.0,0.45229829]
[1737731111830,6.9e-07,105680.0,105670.0,0.46221155]
[1737731112453,0.00029904,105690.0,105680.0,0.204937]
[1737731112454,4e-08,105690.0,105680.0,0.204937]
[1737731112657,0.01645634,105700.0,105690.0,0.184924]
[1737731112874,0.01645634,105700.0,105690.0,0.28321715]
[1737731113084,0.01645634,105700.0,105690.0,0.28227129]
[1737731113303,0.01645634,105700.0,105690.0,0.30227129]
[1737731115681,0.01645634,105700.0,105690.0,0.49977129]
[1737731116302,0.01645634,105700.0,105690.0,0.50970486]
[1737731116954,0.00745633,105700.0,105690.0,0.50970486]
[1737731117160,0.00745633,105700.0,105690.0,0.52879431]
[1737731118235,0.00745633,105700.0,105690.0,0.48129431]
[1737731118443,0.00745633,105700.0,105690.0,0.44129431]
[1737731118865,0.00745633,105700.0,105690.0,0.48129431]
[1737731119077,0.00745633,105700.0,105690.0,0.43829431]
[1737731119320,0.00745633,105700.0,105690.0,0.41829431]
[1737731119538,0.00745633,105700.0,105690.0,0.26920486]
[1737731119761,0.00745633,105700.0,105690.0,0.41920486]
[1737731120006,3.3e-07,105700.0,105690.0,0.46220486]
[1737731120210,5.4e-07,105710.0,105700.0,0.331911]
[1737731120424,5.4e-07,105710.0,105700.0,0.42925829]
[1737731120636,5.4e-07,105710.0,105700.0,0.41225829]
[1737731120853,5.4e-07,105710.0,105700.0,0.38925829]
[1737731122078,0.01654814,105730.0,105720.0,0.291884]
[1737731122200,0.01669583,105730.0,105720.0,0.311884]
[1737731122399,0.01669583,105730.0,105720.0,0.291884]
[1737731122608,0.01669583,105730.0,105720.0,0.141884]
[1737731122814,0.01669583,105730.0,105720.0,0.14282974]
[1737731123055,0.00014769,105730.0,105720.0,0.161884]
[1737731123254,0.00014769,105730.0,105720.0,0.14282974]
[1737731123410,0.18941769,105730.0,105720.0,0.14282974]
[1737731123619,0.12414769,105730.0,105720.0,0.161884]
[1737731124027,0.13414769,105730.0,105720.0,0.161884]
[1737731124654,0.27601769,105730.0,105720.0,0.141884]
[1737731124850,0.13414769,105730.0,105720.0,0.161884]
[1737731126320,0.27601769,105730.0,105710.0,0.567551]
[1737731126672,0.13414769,105730.0,105720.0,0.161884]
[1737731126921,0.12414769,105730.0,105720.0,0.161884]
[1737731127142,0.12414769,105730.0,105720.0,0.26017708]
[1737731127143,0.07674769,105730.0,105720.0,0.26017708]
[1737731127346,0.07674769,105730.0,105720.0,0.40923129]
[1737731128608,0.08219842,105750.0,105740.0,0.311857]
[1737731128811,0.00029842,105750.0,105740.0,0.45220429]
[1737731129229,4.2e-07,105750.0,105740.0,0.45220429]
[1737731130468,4.2e-07,105750.0,105740.0,0.49257858]
[1737731130737,0.00029883,105770.0,105760.0,0.04]
[1737731130911,9.4e-07,105770.0,105760.0,0.45312246]
[1737731131112,9.4e-07,105770.0,105760.0,0.47325158]
[1737731131517,9.4e-07,105770.0,105760.0,0.49477774]
[1737731131928,9.4e-07,105770.0,105760.0,0.47325158]
[1737731132120,9.4e-07,105770.0,105760.0,0.45217729]
[1737731132564,0.000358,105790.0,105780.0,0.354803]
[1737731132565,9.4e-07,105790.0,105780.0,0.354803]
[1737731132771,0.09555509,105810.0,105800.0,0.331776]
[1737731132772,0.01645509,105810.0,105800.0,0.331776]
[1737731132981,0.01660275,105810.0,105800.0,0.42912329]
[1737731133188,0.01660275,105810.0,105800.0,0.47871486]
[1737731133394,7.5e-07,105810.0,105800.0,0.51145387]
[1737731133598,0.00029821,105840.0,105830.0,0.311736]
[1737731133782,0.00029821,105840.0,105830.0,0.40908329]
[1737731134649,0.00029821,105840.0,105830.0,0.38908329]
[1737731134857,0.00029821,105840.0,105830.0,0.40908329]
[1737731135837,0.00029821,105840.0,105830.0,0.25908329]
[1737731136217,0.01029821,105840.0,105830.0,0.141736]
[1737731136398,0.01029821,105840.0,105830.0,0.161736]
[1737731136813,1.51029821,105840.0,105830.0,0.141736]
[1737731137069,0.01029821,105840.0,105830.0,0.161736]
[1737731137819,0.01029821,105840.0,105830.0,0.16268082]
[1737731138001,0.01029821,105840.0,105830.0,0.141736]
[1737731138201,0.230946,105830.0,105810.0,0.350764]
[1737731138405,0.419938,105830.0,105820.0,0.02]
[1737731138945,0.230763,105810.0,105800.0,0.18902]
[1737731139149,0.230765,105810.0,105790.0,0.51986]
[1737731139353,0.230765,105810.0,105800.0,0.141776]
[1737731139497,0.230765,105810.0,105790.0,0.60368941]
[1737731139693,0.230765,105810.0,105800.0,0.02]
[1737731139694,0.31811029,105810.0,105800.0,0.02]
[1737731139939,0.01,105800.0,105790.0,0.29287841]
[1737731140149,0.141776,105800.0,105790.0,0.08382541]
[1737731140520,0.25043214,105800.0,105790.0,0.08382541]
[1737731140689,0.54477943,105800.0,105790.0,0.00572541]
[1737731140903,0.01,105770.0,105760.0,0.161826]
[1737731141100,0.01,105770.0,105760.0,0.16291311]
[1737731141523,0.01,105770.0,105760.0,0.14291311]
[1737731141733,0.597468,105780.0,105760.0,0.3310627]
[1737731141938,0.50573329,105780.0,105760.0,0.3310627]
[1737731142152,0.50573329,105780.0,105770.0,0.02]
[1737731142359,0.32666129,105780.0,105770.0,0.02]
[1737731142569,0.0775,105780.0,105770.0,0.161817]
[1737731142778,0.12504744,105800.0,105790.0,0.02]
[1737731142989,0.12504744,105800.0,105790.0,0.16273519]
[1737731143200,0.07804744,105800.0,105790.0,0.16273519]
[1737731143403,0.07804744,105800.0,105790.0,0.26008248]
[1737731143608,0.07804744,105800.0,105790.0,0.25913729]
[1737731144465,0.01,105780.0,105770.0,0.339077]
[1737731146350,0.151803,105780.0,105770.0,0.189077]
[1737731146534,0.0799,105770.0,105760.0,0.0201417]
[1737731146778,0.221717,105770.0,105760.0,0.0001417]
[1737731146979,0.221717,105770.0,105760.0,0.0201417]
[1737731147219,0.221717,105770.0,105760.0,0.1619717]
[1737731147348,0.0799,105770.0,105760.0,0.1619717]
[1737731147553,0.221717,105770.0,105760.0,0.0001417]
[1737731147957,0.0799,105770.0,105760.0,0.1619717]
[1737731148340,0.0799,105770.0,105760.0,0.16291721]
[1737731148563,0.01,105780.0,105770.0,0.141817]
[1737731148681,0.1212,105790.0,105780.0,0.161803]
[1737731148887,0.0753,105790.0,105780.0,0.26009556]
[1737731149088,0.0753,105790.0,105780.0,0.25915029]
[1737731149494,0.22709,105790.0,105780.0,0.141803]
[1737731149728,0.0853,105790.0,105780.0,0.141803]
[1737731150106,0.0853,105790.0,105780.0,0.161803]
[1737731150889,0.0753,105790.0,105780.0,0.161803]
[1737731151089,0.0753,105790.0,105780.0,0.26009555]
[1737731151462,0.01014744,105800.0,105790.0,0.16179]
[1737731152481,0.01014744,105800.0,105790.0,0.16273513]
[1737731153436,0.01014744,105800.0,105780.0,0.291803]
[1737731153437,0.01,105790.0,105780.0,0.291803]
[1737731153658,0.01,105790.0,105780.0,0.311803]
[1737731153834,0.00029758,105790.0,105780.0,0.311803]
[1737731154023,0.00029758,105790.0,105780.0,0.40915029]
[1737731154571,0.01014744,105800.0,105790.0,0.16179063]
[1737731154778,0.01014744,105800.0,105790.0,0.26008301]
[1737731154988,0.01014744,105800.0,105790.0,0.23913792]
[1737731155202,0.01014744,105800.0,105790.0,0.25913792]
[1737731155399,0.01014744,105800.0,105790.0,0.16179063]
[1737731155400,0.00014744,105800.0,105790.0,0.16179063]
[1737731155601,0.01014744,105800.0,105790.0,0.16179063]
[1737731155803,0.00014744,105800.0,105790.0,0.16179063]
[1737731156016,0.00014744,105800.0,105790.0,0.1627358]
[1737731156426,0.01014744,105800.0,105790.0,0.1627358]
[1737731157874,0.00014744,105800.0,105790.0,0.24008309]
[1737731158076,0.00014744,105800.0,105790.0,0.40913792]
[1737731158552,0.00014744,105800.0,105790.0,0.43213792]
[1737731159167,0.00014744,105800.0,105790.0,0.40913792]
[1737731159776,0.00014744,105800.0,105790.0,0.44693992]
[1737731159980,0.00014744,105800.0,105790.0,0.46993992]
[1737731160401,4.4e-07,105800.0,105790.0,0.46993992]
[1737731160562,0.00029758,105830.0,105820.0,0.31175]
[1737731160766,0.00029758,105830.0,105820.0,0.40909729]
[1737731161127,0.22785,105820.0,105810.0,0.189002]
[1737731161327,0.378015,105820.0,105800.0,0.02]
[1737731161529,0.378015,105820.0,105790.0,0.18904263]
[1737731161530,0.141776,105800.0,105790.0,0.02000063]
[1737731161667,0.190476,105800.0,105790.0,6.3e-07]
[1737731162069,0.190476,105800.0,105790.0,0.02000063]
[1737731162326,0.3308,105810.0,105790.0,0.16178463]
[1737731162526,0.28637429,105810.0,105790.0,6.3e-07]
[1737731162727,0.28462329,105800.0,105790.0,6.3e-07]
[1737731162974,0.30221654,105800.0,105790.0,6.3e-07]
[1737731163805,0.45221654,105800.0,105790.0,6.3e-07]
[1737731163935,0.141803,105780.0,105770.0,0.0001417]
[1737731164150,0.141803,105780.0,105770.0,0.00028914]
[1737731164151,0.43625029,105780.0,105770.0,0.00028914]
[1737731164400,0.51125029,105780.0,105770.0,0.00028914]
[1737731165436,2.01125029,105780.0,105770.0,0.00028914]
[1737731166043,2.01125029,105780.0,105760.0,0.0001417]
[1737731166044,0.324817,105770.0,105760.0,0.0001417]
[1737731166252,0.42216429,105770.0,105760.0,0.0001417]
[1737731166665,0.41216429,105770.0,105760.0,0.0001417]
[1737731167081,0.38916429,105770.0,105760.0,0.0001417]
[1737731168308,0.38916429,105770.0,105760.0,0.1419717]
[1737731168524,0.12224741,105780.0,105760.0,0.1419717]
[1737731168749,0.00014741,105780.0,105770.0,0.161817]
[1737731168952,0.00014741,105780.0,105770.0,0.40916429]
[1737731170825,0.00014741,105780.0,105770.0,0.4094625]
[1737731172759,0.00014741,105780.0,105770.0,0.14211521]
[1737731173702,0.00014741,105780.0,105770.0,0.16211521]
[1737731174515,0.00014741,105780.0,105770.0,0.14211521]
[1737731174720,0.00014741,105780.0,105770.0,0.16211521]
[1737731174927,0.00014741,105780.0,105770.0,0.14211521]
[1737731175362,0.2392977,105780.0,105770.0,0.00029821]
[1737731175569,0.2870977,105780.0,105770.0,0.00029821]
[1737731175776,0.4470977,105780.0,105770.0,0.00029821]
[1737731175984,1.9470977,105780.0,105770.0,0.00029821]
[1737731176402,0.141817,105770.0,105760.0,0.00034262]
[1737731176649,0.23916429,105770.0,105760.0,0.02034262]
[1737731176895,0.23916429,105770.0,105760.0,0.16217262]
[1737731177119,0.23916429,105770.0,105760.0,0.01995267]
[1737731177296,0.23916429,105770.0,105740.0,0.189128]
[1737731177297,0.14183,105760.0,105740.0,0.189128]
[1737731177510,0.14183,105760.0,105750.0,0.16179567]
[1737731178105,0.42826229,105770.0,105760.0,0.01995267]
[1737731178303,0.52883641,105780.0,105760.0,0.35088067]
[1737731178508,0.141817,105770.0,105760.0,0.16178267]
[1737731179041,0.04794741,105780.0,105770.0,0.1419587]
[1737731179290,0.04794741,105780.0,105770.0,0.16191137]
[1737731179489,0.00014741,105780.0,105770.0,0.16191137]
[1737731179637,0.00014741,105780.0,105770.0,0.40925866]
[1737731180054,0.01014741,105780.0,105770.0,0.40925866]
[1737731180610,0.00014741,105780.0,105770.0,0.40925866]
[1737731180820,0.01,105800.0,105790.0,0.16174267]
[1737731181031,0.01,105800.0,105790.0,0.26003506]
[1737731181234,0.01,105800.0,105790.0,0.40908996]
[1737731181653,0.330773,105820.0,105810.0,0.01995267]
[1737731181866,0.00014752,105820.0,105810.0,0.20896367]
[1737731182416,0.00014752,105820.0,105810.0,0.45631096]
[1737731183142,0.00014752,105820.0,105810.0,0.43635829]
[1737731183143,0.01014752,105820.0,105810.0,0.43635829]
[1737731183354,0.01014752,105820.0,105810.0,0.20896367]
[1737731183355,0.00014752,105820.0,105810.0,0.20896367]
[1737731184869,0.01014752,105820.0,105810.0,0.30631096]
[1737731185286,0.00029758,105830.0,105820.0,0.16170267]
[1737731185992,0.00029758,105830.0,105820.0,0.16264765]
[1737731186252,0.00029758,105830.0,105820.0,0.16170267]
[1737731186413,0.00029758,105830.0,105820.0,0.16264757]
[1737731186866,0.00029758,105830.0,105820.0,0.25999486]
[1737731187032,0.00029758,105830.0,105820.0,0.25904996]
[1737731187384,0.00029758,105830.0,105820.0,0.40904996]
[1737731188474,0.00029758,105830.0,105820.0,0.14175]
[1737731188653,0.00029758,105830.0,105820.0,0.16170267]
[1737731188858,0.14203358,105830.0,105820.0,0.16170267]
[1737731189051,0.00029758,105830.0,105820.0,0.16170267]
[1737731189525,0.00029758,105830.0,105820.0,0.14175]
[1737731189698,0.14203758,105830.0,105820.0,0.16170267]
[1737731189905,0.14203758,105830.0,105820.0,0.14175]
[1737731190464,0.14203758,105830.0,105820.0,0.16170267]
[1737731191138,0.00029758,105830.0,105820.0,0.16170267]
[1737731191367,0.00029758,105830.0,105820.0,0.16264763]
[1737731191542,0.00029758,105830.0,105820.0,0.16170267]
[1737731191774,0.00029758,105830.0,105820.0,0.16264757]
[1737731192189,0.00029758,105830.0,105820.0,0.16170267]
[1737731193223,0.14203358,105830.0,105820.0,0.14175]
[1737731193627,0.14203358,105830.0,105810.0,0.378012]
[1737731193868,0.330752,105820.0,105810.0,0.01995267]
[1737731194079,0.141776,105800.0,105780.0,0.189061]
[1737731194300,0.141763,105810.0,105800.0,0.00014752]
[1737731194539,0.57459623,105810.0,105800.0,0.00014752]
[1737731194749,0.41798077,105810.0,105800.0,0.00014752]
[1737731194950,0.519774,105820.0,105800.0,0.33095252]
[1737731195156,0.141763,105810.0,105800.0,0.14192352]
[1737731195778,0.141763,105810.0,105800.0,0.00014752]
[1737731195962,0.23911029,105810.0,105800.0,0.00014752]
[1737731196816,0.141763,105810.0,105800.0,0.14192352]
[1737731197025,0.141761,105820.0,105810.0,0.141763]
[1737731197243,0.12599758,105830.0,105820.0,0.14175]
[1737731197452,0.12599758,105830.0,105820.0,0.16170267]
[1737731197885,0.07999758,105830.0,105820.0,0.16170267]
[1737731198129,0.00029758,105830.0,105820.0,0.16170267]
[1737731198330,0.00029758,105830.0,105820.0,0.1626476]
[1737731198998,0.00029758,105830.0,105820.0,0.3126476]
[1737731199211,0.00029758,105830.0,105820.0,0.31170267]
[1737731199421,0.00029758,105830.0,105820.0,0.29175]
[1737731199632,0.00029758,105830.0,105820.0,0.31170267]
[1737731199840,0.00029758,105830.0,105820.0,0.29175]
[1737731200083,0.00029758,105830.0,105820.0,0.40904996]
[1737731200900,0.00029758,105830.0,105820.0,0.38909729]
[1737731201550,0.00029758,105830.0,105820.0,0.40904996]
[1737731201726,0.00029758,105830.0,105820.0,0.38909729]
[1737731202156,0.00029758,105830.0,105820.0,0.40919166]
[1737731206618,0.00029862,105860.0,105850.0,0.16166167]
[1737731206820,0.00029862,105860.0,105850.0,0.40995347]
[1737731207026,0.00029862,105860.0,105850.0,0.40900896]
[1737731207885,0.00044611,105860.0,105850.0,0.40900896]
[1737731208092,0.00044611,105860.0,105850.0,0.38905629]
[1737731208255,0.00044611,105860.0,105850.0,0.40900896]
[1737731209314,0.00460226,105860.0,105850.0,0.40900896]
[1737731209534,0.00044611,105860.0,105850.0,0.40900896]
[1737731209743,0.00460226,105860.0,105850.0,0.40900896]
[1737731209951,0.00044611,105860.0,105850.0,0.40900896]
[1737731210169,0.00460226,105860.0,105850.0,0.40900896]
[1737731210353,0.00044611,105860.0,105850.0,0.40900896]
[1737731210552,0.00460226,105860.0,105850.0,0.40900896]
[1737731210695,0.00044611,105860.0,105850.0,0.40900896]
[1737731210896,0.00460226,105860.0,105850.0,0.40900896]
[1737731211321,0.00460226,105860.0,105850.0,0.38905629]
[1737731211528,0.00460226,105860.0,105850.0,0.16166167]
[1737731211950,0.00460226,105860.0,105850.0,0.141709]
[1737731212168,0.00460226,105860.0,105850.0,0.16166167]
[1737731212363,0.00460226,105860.0,105850.0,0.16260629]
[1737731213666,0.00460226,105860.0,105850.0,0.25995358]
[1737731213927,0.00460226,105860.0,105850.0,0.25900896]
[1737731216084,0.000298,105880.0,105870.0,0.31163567]